Workbook

Sheet HOME
T2: =IF(CALC!G1=1," NEXT",IF(CALC!F5>0," TRY AGAIN","")) ->  | W2: RESET | AG2: scrollbars
AG3: sc1 | AH3: 59
AG4: sc2 | AH4: 45
AG6: trajectory | AH6: FALSE
T7: stretching distance | W7: =CALC!B17 -> 0.41 | X7: m | AG7: vectors | AH7: FALSE
T10: shooting angle | W10: =CALC!B3 -> 45 | X10: deg
T14: Stage No. | U14: Tries | W14: Positions:
T15: =IF(CALC!L3="","","Stage"&CALC!L3) -> Stage1 | U15: =IF(CALC!M3="","",CALC!M3) -> 1 | W15: Bird_x(m) | X15: =CALC!B4 -> 1.5
T16: =IF(CALC!L4="","","Stage"&CALC!L4) ->  | U16: =IF(CALC!M4="","",CALC!M4) ->  | W16: Bird_y(m) | X16: =CALC!B5 -> 1.5
T17: =IF(CALC!L5="","","Stage"&CALC!L5) ->  | U17: =IF(CALC!M5="","",CALC!M5) ->  | W17: Pig_x(m) | X17: =CALC!B6 -> 8
T18: =IF(CALC!L6="","","Stage"&CALC!L6) ->  | U18: =IF(CALC!M6="","",CALC!M6) ->  | W18: Pig_y(m) | X18: =CALC!B7 -> 3
T19: =IF(CALC!L7="","","Stage"&CALC!L7) ->  | U19: =IF(CALC!M7="","",CALC!M7) -> 
T20: =IF(CALC!L8="","","Stage"&CALC!L8) ->  | U20: =IF(CALC!M8="","",CALC!M8) ->  | W20: Results
T21: =IF(CALC!L9="","","Stage"&CALC!L9) ->  | U21: =IF(CALC!M9="","",CALC!M9) ->  | W21: Completed | X21: All
T22: =IF(CALC!L10="","","Stage"&CALC!L10) ->  | U22: =IF(CALC!M10="","",CALC!M10) ->  | W22: Stages | X22: Tries
T23: =IF(CALC!L11="","","Stage"&CALC!L11) ->  | U23: =IF(CALC!M11="","",CALC!M11) ->  | W23: =COUNT(CALC!L3:L102)-1 -> 0 | X23: =SUM(CALC!M3:M102)-1 -> 0
T24: =IF(CALC!L12="","","Stage"&CALC!L12) ->  | U24: =IF(CALC!M12="","",CALC!M12) ->  | W24: Shooting %
T25: =IF(CALC!L13="","","Stage"&CALC!L13) ->  | U25: =IF(CALC!M13="","",CALC!M13) ->  | W25: =IF(AND(W23=0,X23=0),"",(W23/X23)*100) ->  | X25: %
T26: =IF(CALC!L14="","","Stage"&CALC!L14) ->  | U26: =IF(CALC!M14="","",CALC!M14) -> 
T27: =IF(CALC!L15="","","Stage"&CALC!L15) ->  | U27: =IF(CALC!M15="","",CALC!M15) -> 
T28: =IF(CALC!L16="","","Stage"&CALC!L16) ->  | U28: =IF(CALC!M16="","",CALC!M16) ->  | W28: Advanced Settings
T29: =IF(CALC!L17="","","Stage"&CALC!L17) ->  | U29: =IF(CALC!M17="","",CALC!M17) ->  | X29: =IF(AH6=TRUE,"ON","OFF") -> OFF
T30: =IF(CALC!L18="","","Stage"&CALC!L18) ->  | U30: =IF(CALC!M18="","",CALC!M18) ->  | X30: =IF(AH7=TRUE,"ON","OFF") -> OFF
T31: =IF(CALC!L19="","","Stage"&CALC!L19) ->  | U31: =IF(CALC!M19="","",CALC!M19) ->  | W31: k (N/m) | X31: 600
T32: =IF(CALC!L20="","","Stage"&CALC!L20) ->  | U32: =IF(CALC!M20="","",CALC!M20) ->  | W32: m (kg) | X32: 3
T33: =IF(CALC!L21="","","Stage"&CALC!L21) ->  | U33: =IF(CALC!M21="","",CALC!M21) ->  | W33: dt (s) | X33: 0.02
T34: =IF(CALC!L22="","","Stage"&CALC!L22) ->  | U34: =IF(CALC!M22="","",CALC!M22) ->  | W34: ax(m/s2) | X34: 0
T35: =IF(CALC!L23="","","Stage"&CALC!L23) ->  | U35: =IF(CALC!M23="","",CALC!M23) ->  | W35: ay(m/s2) | X35: -10
T36: =IF(CALC!L24="","","Stage"&CALC!L24) ->  | U36: =IF(CALC!M24="","",CALC!M24) -> 
T37: =IF(CALC!L25="","","Stage"&CALC!L25) ->  | U37: =IF(CALC!M25="","",CALC!M25) ->  | W37: tolerances
T38: =IF(CALC!L26="","","Stage"&CALC!L26) ->  | U38: =IF(CALC!M26="","",CALC!M26) ->  | W38: bird_H | X38: 0.08
T39: =IF(CALC!L27="","","Stage"&CALC!L27) ->  | U39: =IF(CALC!M27="","",CALC!M27) ->  | W39: bird_V | X39: 0.08
T40: =IF(CALC!L28="","","Stage"&CALC!L28) ->  | U40: =IF(CALC!M28="","",CALC!M28) ->  | W40: pig_H | X40: 0.12
T41: =IF(CALC!L29="","","Stage"&CALC!L29) ->  | U41: =IF(CALC!M29="","",CALC!M29) ->  | W41: pig_V | X41: 0.12
T42: =IF(CALC!L30="","","Stage"&CALC!L30) ->  | U42: =IF(CALC!M30="","",CALC!M30) -> 
T43: =IF(CALC!L31="","","Stage"&CALC!L31) ->  | U43: =IF(CALC!M31="","",CALC!M31) ->  | W43: manual position
T44: =IF(CALC!L32="","","Stage"&CALC!L32) ->  | U44: =IF(CALC!M32="","",CALC!M32) ->  | W44: Bird_x | X44: 1.5
T45: =IF(CALC!L33="","","Stage"&CALC!L33) ->  | U45: =IF(CALC!M33="","",CALC!M33) ->  | W45: Bird_y | X45: 1.5
T46: =IF(CALC!L34="","","Stage"&CALC!L34) ->  | U46: =IF(CALC!M34="","",CALC!M34) ->  | W46: Pig_x | X46: 8
T47: =IF(CALC!L35="","","Stage"&CALC!L35) ->  | U47: =IF(CALC!M35="","",CALC!M35) ->  | W47: Pig_y | X47: 3
T48: =IF(CALC!L36="","","Stage"&CALC!L36) ->  | U48: =IF(CALC!M36="","",CALC!M36) ->  | W48: Apply
T49: =IF(CALC!L37="","","Stage"&CALC!L37) ->  | U49: =IF(CALC!M37="","",CALC!M37) -> 
T50: =IF(CALC!L38="","","Stage"&CALC!L38) ->  | U50: =IF(CALC!M38="","",CALC!M38) -> 
T51: =IF(CALC!L39="","","Stage"&CALC!L39) ->  | U51: =IF(CALC!M39="","",CALC!M39) -> 
T52: =IF(CALC!L40="","","Stage"&CALC!L40) ->  | U52: =IF(CALC!M40="","",CALC!M40) -> 
T53: =IF(CALC!L41="","","Stage"&CALC!L41) ->  | U53: =IF(CALC!M41="","",CALC!M41) -> 
T54: =IF(CALC!L42="","","Stage"&CALC!L42) ->  | U54: =IF(CALC!M42="","",CALC!M42) -> 
T55: =IF(CALC!L43="","","Stage"&CALC!L43) ->  | U55: =IF(CALC!M43="","",CALC!M43) -> 
T56: =IF(CALC!L44="","","Stage"&CALC!L44) ->  | U56: =IF(CALC!M44="","",CALC!M44) -> 
T57: =IF(CALC!L45="","","Stage"&CALC!L45) ->  | U57: =IF(CALC!M45="","",CALC!M45) -> 
T58: =IF(CALC!L46="","","Stage"&CALC!L46) ->  | U58: =IF(CALC!M46="","",CALC!M46) -> 
T59: =IF(CALC!L47="","","Stage"&CALC!L47) ->  | U59: =IF(CALC!M47="","",CALC!M47) -> 
T60: =IF(CALC!L48="","","Stage"&CALC!L48) ->  | U60: =IF(CALC!M48="","",CALC!M48) -> 
T61: =IF(CALC!L49="","","Stage"&CALC!L49) ->  | U61: =IF(CALC!M49="","",CALC!M49) -> 
T62: =IF(CALC!L50="","","Stage"&CALC!L50) ->  | U62: =IF(CALC!M50="","",CALC!M50) -> 
T63: =IF(CALC!L51="","","Stage"&CALC!L51) ->  | U63: =IF(CALC!M51="","",CALC!M51) -> 
T64: =IF(CALC!L52="","","Stage"&CALC!L52) ->  | U64: =IF(CALC!M52="","",CALC!M52) -> 
T65: =IF(CALC!L53="","","Stage"&CALC!L53) ->  | U65: =IF(CALC!M53="","",CALC!M53) -> 
T66: =IF(CALC!L54="","","Stage"&CALC!L54) ->  | U66: =IF(CALC!M54="","",CALC!M54) -> 
T67: =IF(CALC!L55="","","Stage"&CALC!L55) ->  | U67: =IF(CALC!M55="","",CALC!M55) -> 
T68: =IF(CALC!L56="","","Stage"&CALC!L56) ->  | U68: =IF(CALC!M56="","",CALC!M56) -> 
T69: =IF(CALC!L57="","","Stage"&CALC!L57) ->  | U69: =IF(CALC!M57="","",CALC!M57) -> 
T70: =IF(CALC!L58="","","Stage"&CALC!L58) ->  | U70: =IF(CALC!M58="","",CALC!M58) -> 
T71: =IF(CALC!L59="","","Stage"&CALC!L59) ->  | U71: =IF(CALC!M59="","",CALC!M59) -> 
T72: =IF(CALC!L60="","","Stage"&CALC!L60) ->  | U72: =IF(CALC!M60="","",CALC!M60) -> 
T73: =IF(CALC!L61="","","Stage"&CALC!L61) ->  | U73: =IF(CALC!M61="","",CALC!M61) -> 
T74: =IF(CALC!L62="","","Stage"&CALC!L62) ->  | U74: =IF(CALC!M62="","",CALC!M62) -> 
T75: =IF(CALC!L63="","","Stage"&CALC!L63) ->  | U75: =IF(CALC!M63="","",CALC!M63) -> 
T76: =IF(CALC!L64="","","Stage"&CALC!L64) ->  | U76: =IF(CALC!M64="","",CALC!M64) -> 
T77: =IF(CALC!L65="","","Stage"&CALC!L65) ->  | U77: =IF(CALC!M65="","",CALC!M65) -> 
T78: =IF(CALC!L66="","","Stage"&CALC!L66) ->  | U78: =IF(CALC!M66="","",CALC!M66) -> 
T79: =IF(CALC!L67="","","Stage"&CALC!L67) ->  | U79: =IF(CALC!M67="","",CALC!M67) -> 
T80: =IF(CALC!L68="","","Stage"&CALC!L68) ->  | U80: =IF(CALC!M68="","",CALC!M68) -> 
T81: =IF(CALC!L69="","","Stage"&CALC!L69) ->  | U81: =IF(CALC!M69="","",CALC!M69) -> 
T82: =IF(CALC!L70="","","Stage"&CALC!L70) ->  | U82: =IF(CALC!M70="","",CALC!M70) -> 
T83: =IF(CALC!L71="","","Stage"&CALC!L71) ->  | U83: =IF(CALC!M71="","",CALC!M71) -> 
T84: =IF(CALC!L72="","","Stage"&CALC!L72) ->  | U84: =IF(CALC!M72="","",CALC!M72) -> 
T85: =IF(CALC!L73="","","Stage"&CALC!L73) ->  | U85: =IF(CALC!M73="","",CALC!M73) -> 
T86: =IF(CALC!L74="","","Stage"&CALC!L74) ->  | U86: =IF(CALC!M74="","",CALC!M74) -> 
T87: =IF(CALC!L75="","","Stage"&CALC!L75) ->  | U87: =IF(CALC!M75="","",CALC!M75) -> 
T88: =IF(CALC!L76="","","Stage"&CALC!L76) ->  | U88: =IF(CALC!M76="","",CALC!M76) -> 
T89: =IF(CALC!L77="","","Stage"&CALC!L77) ->  | U89: =IF(CALC!M77="","",CALC!M77) -> 
T90: =IF(CALC!L78="","","Stage"&CALC!L78) ->  | U90: =IF(CALC!M78="","",CALC!M78) -> 
T91: =IF(CALC!L79="","","Stage"&CALC!L79) ->  | U91: =IF(CALC!M79="","",CALC!M79) -> 
T92: =IF(CALC!L80="","","Stage"&CALC!L80) ->  | U92: =IF(CALC!M80="","",CALC!M80) -> 
T93: =IF(CALC!L81="","","Stage"&CALC!L81) ->  | U93: =IF(CALC!M81="","",CALC!M81) -> 
T94: =IF(CALC!L82="","","Stage"&CALC!L82) ->  | U94: =IF(CALC!M82="","",CALC!M82) -> 
T95: =IF(CALC!L83="","","Stage"&CALC!L83) ->  | U95: =IF(CALC!M83="","",CALC!M83) -> 
T96: =IF(CALC!L84="","","Stage"&CALC!L84) ->  | U96: =IF(CALC!M84="","",CALC!M84) -> 
T97: =IF(CALC!L85="","","Stage"&CALC!L85) ->  | U97: =IF(CALC!M85="","",CALC!M85) -> 
T98: =IF(CALC!L86="","","Stage"&CALC!L86) ->  | U98: =IF(CALC!M86="","",CALC!M86) -> 
T99: =IF(CALC!L87="","","Stage"&CALC!L87) ->  | U99: =IF(CALC!M87="","",CALC!M87) -> 
T100: =IF(CALC!L88="","","Stage"&CALC!L88) ->  | U100: =IF(CALC!M88="","",CALC!M88) -> 
T101: =IF(CALC!L89="","","Stage"&CALC!L89) ->  | U101: =IF(CALC!M89="","",CALC!M89) -> 
T102: =IF(CALC!L90="","","Stage"&CALC!L90) ->  | U102: =IF(CALC!M90="","",CALC!M90) -> 
T103: =IF(CALC!L91="","","Stage"&CALC!L91) ->  | U103: =IF(CALC!M91="","",CALC!M91) -> 
T104: =IF(CALC!L92="","","Stage"&CALC!L92) ->  | U104: =IF(CALC!M92="","",CALC!M92) -> 
T105: =IF(CALC!L93="","","Stage"&CALC!L93) ->  | U105: =IF(CALC!M93="","",CALC!M93) -> 
T106: =IF(CALC!L94="","","Stage"&CALC!L94) ->  | U106: =IF(CALC!M94="","",CALC!M94) -> 
T107: =IF(CALC!L95="","","Stage"&CALC!L95) ->  | U107: =IF(CALC!M95="","",CALC!M95) -> 
T108: =IF(CALC!L96="","","Stage"&CALC!L96) ->  | U108: =IF(CALC!M96="","",CALC!M96) -> 
T109: =IF(CALC!L97="","","Stage"&CALC!L97) ->  | U109: =IF(CALC!M97="","",CALC!M97) -> 
T110: =IF(CALC!L98="","","Stage"&CALC!L98) ->  | U110: =IF(CALC!M98="","",CALC!M98) -> 
T111: =IF(CALC!L99="","","Stage"&CALC!L99) ->  | U111: =IF(CALC!M99="","",CALC!M99) -> 
T112: =IF(CALC!L100="","","Stage"&CALC!L100) ->  | U112: =IF(CALC!M100="","",CALC!M100) -> 
T113: =IF(CALC!L101="","","Stage"&CALC!L101) ->  | U113: =IF(CALC!M101="","",CALC!M101) -> 
T114: =IF(CALC!L102="","","Stage"&CALC!L102) ->  | U114: =IF(CALC!M102="","",CALC!M102) -> 
T115: =IF(CALC!L103="","","Stage"&CALC!L103) ->  | U115: =IF(CALC!M103="","",CALC!M103) -> 
T116: =IF(CALC!L104="","","Stage"&CALC!L104) ->  | U116: =IF(CALC!M104="","",CALC!M104) -> 

Sheet CALC
A1: INPUT | E1: disznó eliminálva? | G1: =IF(AND(G5+B33>G40-B35,G5-B33<G40+B35,H5+B34>H40-B36,H5-B34<H40+B36),1,0) -> 0 | H1: madár leesett? | I1: =IF(AND(H5<=0,F5>0),1,0) -> 0 | L1: -1 | M1: 1
A2: v | B2: =((B18*B17^2/B19)-(2*ABS(B11)*B17*SIN(B3*PI()/180)))^0.5 -> 5.274630261 | O2: vectors | P2: =IF(HOME!AH7=TRUE,1,0) -> 0
A3: alfa | B3: =HOME!AH4 -> 45 | E3: 5 | G3: madar | I3: palyagorbe | L3: 1 | M3: 1 | P3: =IF(P2=1,1,NA()) -> 
A4: xA | B4: 1.5 | C4: m | D4: =HOME!X44 -> 1.5 | E4: t_cs | F4: t_r | G4: x | H4: y | I4: x | J4: y | O4: x | P4: y
A5: yA | B5: 1.5 | C5: m | D5: =HOME!X45 -> 1.5 | E5: 0 | F5: 0 | G5: =IF(E5<B21,B4-(B17*COS(B20*E5))*COS(B3*PI()/180),B4+B8*F5+0.5*B10*F5^2) -> 1.21008622 | H5: =IF(E5<B21,B5-(B17*COS(B20*E5))*SIN(B3*PI()/180),B5+B9*F5+0.5*B11*F5^2) -> 1.21008622 | I5: =B4+B8*F5+0.5*B10*F5^2 -> 1.5 | J5: =B5+B9*F5+0.5*B11*F5^2 -> 1.5 | N5: x | O5: 0 | P5: 0
A6: xC | B6: 8 | C6: m | D6: =HOME!X46 -> 8 | O6: =P3*IF(F5=0,B4,G5) ->  | P6: 0
A7: yC | B7: 3 | C7: m | D7: =HOME!X47 -> 3 | G7: csúzli gumi | N7: arr | O7: =P3*O6-N8*COS(N9*PI()/180) ->  | P7: =P3*P6+N8*SIN(N9*PI()/180) -> 
A8: v0x | B8: =B2*COS(B3*PI()/180) -> 3.729726826 | C8: m/s | G8: =IF(E5<(PI()/(2*B20)),B4-(B17*COS(B20*E5))*COS(B3*PI()/180),B4) -> 1.21008622 | H8: =IF(E5<(PI()/(2*B20)),B5-(B17*COS(B20*E5))*SIN(B3*PI()/180),B5) -> 1.21008622 | N8: 0.5 | O8: =O6 ->  | P8: =P6 -> 0
A9: v0y | B9: =B2*SIN(B3*PI()/180) -> 3.729726826 | C9: m/s | G9: =B4-B24/2 -> 1.3 | H9: =B5 -> 1.5 | N9: 30 | O9: =P3*O6-N8*COS(N9*PI()/180) ->  | P9: =P3*P6-N8*SIN(N9*PI()/180) -> 
A10: a_x | B10: =HOME!X34 -> 0 | C10: m/s^2
A11: a_y | B11: =HOME!X35 -> -10 | C11: m/s^2 | G11: =IF(E5<(PI()/(2*B20)),B4-(B17*COS(B20*E5))*COS(B3*PI()/180),B4) -> 1.21008622 | H11: =IF(E5<(PI()/(2*B20)),B5-(B17*COS(B20*E5))*SIN(B3*PI()/180),B5) -> 1.21008622 | N11: y | O11: 0 | P11: 0
G12: =B4+B24/2 -> 1.7 | H12: =B5 -> 1.5 | O12: 0 | P12: =P3*IF(F5=0,B5,H5) -> 
A13: dt | B13: =HOME!X33 -> 0.02 | C13: s | N13: arr | O13: =P3*O12-N14*SIN(N15*PI()/180) ->  | P13: =P3*P12-N14*COS(N15*PI()/180) -> 
G14: csúzli ág | N14: 0.5 | O14: 0 | P14: =P12 -> 
A15: curve | B15: =IF(HOME!AH6=TRUE,1,0) -> 0 | G15: =B4-B24/2 -> 1.3 | H15: =B5 -> 1.5 | N15: 30 | O15: =P3*O12+N14*SIN(N15*PI()/180) ->  | P15: =P13 -> 
G16: =B4 -> 1.5 | H16: =B5-B25 -> 0.9
A17: q0 | B17: =1-HOME!AH3/100 -> 0.41 | C17: m | D17: 147 | N17: Xydot | O17: =P3*IF(F5=0,B4,G5) ->  | P17: =P6 -> 0
A18: k | B18: =HOME!X31 -> 600 | C18: N/m | G18: =B4+B24/2 -> 1.7 | H18: =B5 -> 1.5 | O18: =P3*IF(F5=0,B4,G5) ->  | P18: =P3*IF(F5=0,B5,H5) -> 
A19: m | B19: =HOME!X32 -> 3 | C19: kg | G19: =B4 -> 1.5 | H19: =B5-B25 -> 0.9
A20: nf | B20: =(B18/B19)^(0.5) -> 14.14213562 | O20: 0 | P20: =P3*IF(F5=0,B5,H5) -> 
A21: starttime | B21: =PI()/(2*B20) -> 0.1110720735 | G21: =B4 -> 1.5 | H21: =B5-B25 -> 0.9 | O21: =P3*IF(F5=0,B4,G5) ->  | P21: =P3*IF(F5=0,B5,H5) -> 
G22: =B4 -> 1.5 | H22: =B5-B25-B26 -> 0.3
A23: csuzli | N23: vx | O23: =IF(F5=0,NA(),G5) ->  | P23: =P3*IF(F5=0,NA(),H5) -> 
A24: A | B24: 0.4 | G24: kilövő állás | N24: 0.2 | O24: =P3*IF(F5=0,NA(),G5+N24*B8) ->  | P24: =P3*IF(F5=0,NA(),H5) -> 
A25: B | B25: 0.6 | G25: =B4-B27 -> 0.9 | H25: 0 | N25: arr | O25: =P3*O24-N26*COS(N27*PI()/180) ->  | P25: =P3*P23+N26*SIN(N27*PI()/180) -> 
A26: C | B26: 0.6 | G26: =B4 -> 1.5 | H26: =H22 -> 0.3 | N26: 0.3 | O26: =O24 ->  | P26: =P23 -> 
A27: D | B27: 0.6 | G27: =B4 -> 1.5 | H27: 0 | N27: 30 | O27: =P3*O24-N26*COS(N27*PI()/180) ->  | P27: =P3*P23-N26*SIN(N27*PI()/180) -> 
G28: =G27 -> 1.5 | H28: 0
A29: disznómagaslat | G29: =B4 -> 1.5 | H29: =H26 -> 0.3 | N29: vy | O29: =IF(F5=0,NA(),G5) ->  | P29: =P3*IF(F5=0,NA(),H5) ->  | Q29: =SIGN(P29-P30) -> 
A30: E | B30: 0.3 | G30: =G29+B27 -> 2.1 | H30: 0 | O30: =P3*IF(F5=0,NA(),G5) ->  | P30: =P3*IF(F5=0,NA(),H5+N24*(B9+B11*F5)) -> 
N31: arr | O31: =P3*O30-N32*SIN(N33*PI()/180) ->  | P31: =P3*P30+Q29*N32*COS(N33*PI()/180) -> 
A32: tűrések | N32: 0.3 | O32: =O30 ->  | P32: =P30 -> 
A33: bird_H | B33: =HOME!X38 -> 0.08 | G33: disznómagaslat | N33: 30 | O33: =P3*O30+N32*SIN(N33*PI()/180) ->  | P33: =P31 -> 
A34: bird_V | B34: =HOME!X39 -> 0.08 | G34: =B6 -> 8 | H34: 0
A35: pig_H | B35: =HOME!X40 -> 0.12 | G35: =B6 -> 8 | H35: =B7-B36 -> 2.88 | N35: a_y | O35: =IF(F5=0,NA(),G5) ->  | P35: =P3*IF(F5=0,NA(),H5) -> 
A36: pig_V | B36: =HOME!X41 -> 0.12 | G36: =B6-B30 -> 7.7 | H36: =H35 -> 2.88 | N36: 0.15 | O36: =O35 ->  | P36: =P35+N36*B11 -> 
G37: =B6+B30 -> 8.3 | H37: =H36 -> 2.88 | N37: arr | O37: =P3*O36-N38*SIN(N39*PI()/180) ->  | P37: =P3*P36+N38*COS(N39*PI()/180) -> 
A38: 0.5338730812 | N38: 0.3 | O38: =O36 ->  | P38: =P36 -> 
G39: disznó | N39: 30 | O39: =P3*O36+N38*SIN(N39*PI()/180) ->  | P39: =P37 -> 
G40: =B6 -> 8 | H40: =B7 -> 3
G42: felirat1
G43: 5 | H43: =IF(G1=0,-10,4) -> -10
G44: felirat2
G45: 5 | H45: =IF(I1=0,-10,4) -> -10
